[Event "51st Rilton Cup 2023-24"]
[Site "Stockholm"]
[Date "2023.12.31"]
[Round "5.19"]
[White "Dhulipalla Bala Chandra Prasad"]
[Black "Del Rey, Diego"]
[Result "1-0"]
[ECO "D11"]
[WhiteElo "2396"]
[BlackElo "2302"]
[Annotator "RC"]
[PlyCount "87"]
[EventDate "2023.12.27"]
[EventType "swiss"]
[EventCountry "SWE"]
[SourceTitle "playchess.com"]
[Source "ChessBase"]
[SourceQuality "1"]
[TimeControl "40/5400+30:1800+30"]

1. d4 {[%emt 0:00:04]} d5 {[%emt 0:00:04]} 2. c4 {[%emt 0:00:05]} c6 {[%emt 0:01:04]} 3. Nf3 {[%emt 0:00:06]} Nf6 {[%emt 0:00:07]} 4. e3 {[%emt 0:00:05]} Bg4 {[%emt 0:02:32]} 5. h3 {[%emt 0:00:07]} Bxf3 {[%emt 0:00:06]} 6. Qxf3 {[%emt 0:00:03]} e6 {[%emt 0:00:11]} 7. Nc3 {[%emt 0:01:11]} Nbd7 {[%emt 0:00:12]} 8. Bd3 {[%emt 0:01:29]} Bb4 {[%emt 0:00:07]} 9. Bd2 {[%emt 0:00:52]} Qe7 {[%emt 0:00:11]} 10. a3 {[%emt 0:14:00]} Bd6 {[%emt 0:00:10]} 11. cxd5 {[%emt 0:05:08]} exd5 {[%emt 0:02:46]} 12. O-O {[%emt 0:10:23]} O-O {[%emt 0:02:18]} 13. Rfe1 {[%emt 0:00:11]} Rad8 {[%emt 0:15:33]} 14. e4 {[%emt 0:04:35]} dxe4 {[%emt 0:04:13]} 15. Bxe4 {[%emt 0:01:01]} Nxe4 {[%emt 0:01:57]} 16. Nxe4 {[%emt 0:00:25]} Nb6 {[%emt 0:09:02]} 17. Nxd6 {[%emt 0:10:12]} Qxd6 {[%emt 0:00:05]} 18. Bb4 {[%emt 0:00:06]} Qxd4 {[%emt 0:00:13]} 19. Bxf8 {[%emt 0:00:29]} Rxf8 {[%emt 0:00:05]} 20. Qb3 {[%emt 0:01:14]} Qd7 {[%emt 0:03:42]} 21. Qe3 {[%emt 0:01:29]} f5 {[%emt 0:07:32]} 22. Rad1 {[%emt 0:03:08]} Qf7 {[%emt 0:00:34]} 23. Qc5 {[%emt 0:06:44]} Qb3 {[%emt 0:02:48]} 24. Qe7 {[%emt 0:03:34]} Qf7 {[%emt 0:01:49]} 25. Qc5 {[%emt 0:04:17]} Qb3 {[%emt 0:02:28]} 26. Rd2 {[%emt 0:03:55]} f4 {[%emt 0:00:36]} 27. Re7 {[%emt 0:02:36]} Nd5 {[%emt 0:00:04]} 28. Rd7 {[%emt 0:00:43]} f3 {[%emt 0:04:23]} 29. Qd4 {[%emt 0:01:57]} Nf6 {[%emt 0:04:06]} 30. Rd8 {[%emt 0:00:05]} fxg2 {[%emt 0:00:36]} 31. Rxf8+ {[%emt 0:05:03]} Kxf8 {[%emt 0:00:01]} 32. Qd6+ {[%emt 0:01:37]} Kf7 {[%emt 0:03:43]} 33. Qc7+ {[%emt 0:00:37]} Kg6 {[%emt 0:01:10]} 34. Qg3+ {[%emt 0:02:26]} Qxg3 {[%emt 0:00:05]} 35. fxg3 {[%emt 0:00:02]} Nd5 {[%emt 0:00:27]} 36. Kxg2 {[%emt 0:00:08]} Kf5 {[%emt 0:00:13]} 37. Re2 {[%emt 0:01:20]} a5 {[%emt 0:01:25]} 38. Kf3 {[%emt 0:01:44]} a4 {[%emt 0:00:07]} 39. Re8 {[%emt 0:08:27]} b5 {[%emt 0:00:36]} 40. Ke2 {[%emt 0:00:57]} h5 {[%emt 0:05:09]} 41. Kd3 {[%emt 0:31:40]} g5 {[%emt 0:33:50]} 42. Kd4 {[%emt 0:02:16]} h4 {[%emt 0:00:31]} 43. Re5+ {[%emt 0:01:01]} Kf6 {[%emt 0:00:04]} 44. gxh4 {[%emt 0:00:50]} 1-0

[Event "51st Rilton Cup 2023-24"]
[Site "Stockholm"]
[Date "2023.12.31"]
[Round "5.20"]
[White "Dragicevic, Drazen"]
[Black "D`Costa, Lorin"]
[Result "1/2-1/2"]
[ECO "B13"]
[WhiteElo "2322"]
[BlackElo "2375"]
[Annotator "RC"]
[PlyCount "102"]
[EventDate "2023.12.27"]
[EventType "swiss"]
[EventCountry "SWE"]
[SourceTitle "playchess.com"]
[Source "ChessBase"]
[SourceQuality "1"]
[TimeControl "40/5400+30:1800+30"]

1. e4 {[%emt 0:01:37]} c6 {[%emt 0:02:54]} 2. d4 {[%emt 0:00:00]} d5 {[%emt 0:00:08]} 3. exd5 {[%emt 0:00:08]} cxd5 {[%emt 0:00:08]} 4. Bd3 {[%emt 0:00:08]} Nc6 {[%emt 0:01:19]} 5. c3 {[%emt 0:00:17]} g6 {[%emt 0:05:25]} 6. Qb3 {[%emt 0:09:44]} Bg7 {[%emt 0:09:08]} 7. Bf4 {[%emt 0:01:00]} Nh6 {[%emt 0:04:26]} 8. Nf3 {[%emt 0:15:56]} O-O {[%emt 0:01:33]} 9. Nbd2 {[%emt 0:10:44]} f6 {[%emt 0:16:46]} 10. O-O {[%emt 0:07:08]} Nf7 {[%emt 0:02:35]} 11. Bg3 {[%emt 0:07:10]} e5 {[%emt 0:02:49]} 12. dxe5 {[%emt 0:00:50]} fxe5 {[%emt 0:00:08]} 13. Be2 {[%emt 0:05:00]} b6 {[%emt 0:26:16]} 14. Rfd1 {[%emt 0:07:48]} Bb7 {[%emt 0:05:55]} 15. Qa4 {[%emt 0:09:27]} a6 {[%emt 0:03:24]} 16. Nf1 {[%emt 0:01:51]} b5 {[%emt 0:04:33]} 17. Qa3 {[%emt 0:04:36]} e4 {[%emt 0:01:55]} 18. N3d2 {[%emt 0:04:28]} Qb6 {[%emt 0:04:41]} 19. Nb3 {[%emt 0:06:03]} b4 {[%emt 0:03:33]} 20. cxb4 {[%emt 0:00:06]} d4 {[%emt 0:01:35]} 21. Nc5 {[%emt 0:02:45]} d3 {[%emt 0:00:20]} 22. Bg4 {[%emt 0:00:08]} Nxb4 {[%emt 0:00:39]} 23. Nxb7 {[%emt 0:03:18]} Qxb7 {[%emt 0:00:36]} 24. Qb3 {[%emt 0:00:13]} Ra7 {[%emt 0:01:07]} 25. Ne3 {[%emt 0:00:25]} Nc2 {[%emt 0:00:26]} 26. Rab1 {[%emt 0:01:32]} Qxb3 {[%emt 0:00:30]} 27. axb3 {[%emt 0:00:01]} Nd4 {[%emt 0:00:29]} 28. b4 {[%emt 0:01:31]} h5 {[%emt 0:00:19]} 29. Bh3 {[%emt 0:00:16]} g5 {[%emt 0:00:39]} 30. f3 {[%emt 0:00:19]} exf3 {[%emt 0:00:35]} 31. gxf3 {[%emt 0:00:16]} Nxf3+ {[%emt 0:00:30]} 32. Kh1 {[%emt 0:00:25]} g4 {[%emt 0:00:32]} 33. Bg2 {[%emt 0:00:32]} N7e5 {[%emt 0:00:20]} 34. Bxe5 {[%emt 0:01:13]} Nxe5 {[%emt 0:00:27]} 35. Be4 {[%emt 0:00:32]} Rd7 {[%emt 0:00:35]} 36. Ra1 {[%emt 0:00:20]} Rd4 {[%emt 0:00:35]} 37. Bd5+ {[%emt 0:00:39]} Kh7 {[%emt 0:00:19]} 38. Be6 {[%emt 0:00:30]} Rd6 {[%emt 0:00:41]} 39. Bf5+ {[%emt 0:00:30]} Kh6 {[%emt 0:00:33]} 40. Be4 {[%emt 0:00:30]} Kg5 {[%emt 0:00:30]} 41. Nd5 {[%emt 0:07:15]} Rf2 {[%emt 0:16:42]} 42. Rf1 {[%emt 0:06:26]} g3 {[%emt 0:08:47]} 43. Rxf2 {[%emt 0:03:46]} gxf2 {[%emt 0:00:01]} 44. Kg2 {[%emt 0:00:09]} Ng4 {[%emt 0:03:30]} 45. h3 {[%emt 0:01:11]} Nf6 {[%emt 0:01:42]} 46. Nxf6 {[%emt 0:10:54]} Bxf6 {[%emt 0:00:08]} 47. Kxf2 {[%emt 0:00:37]} Kf4 {[%emt 0:01:39]} 48. Bb7 {[%emt 0:00:59]} Bh4+ {[%emt 0:00:56]} 49. Kf1 {[%emt 0:00:59]} Rd7 {[%emt 0:01:09]} 50. Bxa6 {[%emt 0:00:27]} Ke3 {[%emt 0:00:17]} 51. Ra3 {[%emt 0:02:11]} Ke4 {[%emt 0:00:43]} 1/2-1/2

[Event "51st Rilton Cup 2023-24"]
[Site "Stockholm"]
[Date "2023.12.31"]
[Round "5.21"]
[White "Kavutskiy, Konstantin"]
[Black "Xylogiannopoulos, Antonios"]
[Result "1-0"]
[ECO "D36"]
[WhiteElo "2384"]
[BlackElo "2248"]
[Annotator "RC"]
[PlyCount "61"]
[EventDate "2023.12.27"]
[EventType "swiss"]
[EventCountry "SWE"]
[SourceTitle "playchess.com"]
[Source "ChessBase"]
[SourceQuality "1"]
[TimeControl "40/5400+30:1800+30"]

1. d4 {[%emt 0:08:13]} d5 {[%emt 0:00:12]} 2. c4 {[%emt 0:00:17]} e6 {[%emt 0:00:08]} 3. Nf3 {[%emt 0:00:30]} h6 {[%emt 0:00:06]} 4. Nc3 {[%emt 0:01:19]} Nf6 {[%emt 0:00:11]} 5. cxd5 {[%emt 0:02:27]} exd5 {[%emt 0:00:11]} 6. Bf4 {[%emt 0:00:10]} Bd6 {[%emt 0:00:23]} 7. Be5 {[%emt 0:00:10]} c6 {[%emt 0:04:20]} 8. Qc2 {[%emt 0:02:24]} O-O {[%emt 0:02:50]} 9. e3 {[%emt 0:00:27]} Qe7 {[%emt 0:02:12]} 10. Bd3 {[%emt 0:00:29]} Nbd7 {[%emt 0:03:17]} 11. Bxd6 {[%emt 0:00:50]} Qxd6 {[%emt 0:00:02]} 12. O-O {[%emt 0:00:22]} Re8 {[%emt 0:03:44]} 13. h3 {[%emt 0:03:22]} Qe7 {[%emt 0:01:32]} 14. Nd2 {[%emt 0:03:09]} Nb6 {[%emt 0:02:49]} 15. Rab1 {[%emt 0:07:20]} Be6 {[%emt 0:00:35]} 16. b4 {[%emt 0:02:18]} a6 {[%emt 0:00:04]} 17. a4 {[%emt 0:06:38]} Nfd7 {[%emt 0:04:05]} 18. Nb3 {[%emt 0:04:19]} Qh4 {[%emt 0:14:44]} 19. Nc5 {[%emt 0:05:24]} Nf6 {[%emt 0:02:06]} 20. Rfe1 {[%emt 0:06:08]} Re7 {[%emt 0:03:25]} 21. Ne2 {[%emt 0:06:43]} g5 {[%emt 0:03:09]} 22. a5 {[%emt 0:08:29]} Nc8 {[%emt 0:08:47]} 23. Nxe6 {[%emt 0:00:30]} fxe6 {[%emt 0:07:43]} 24. Bxa6 {[%emt 0:00:42]} Ne4 {[%emt 0:02:04]} 25. f3 {[%emt 0:00:53]} Qf2+ {[%emt 0:18:51]} 26. Kh2 {[%emt 0:00:07]} g4 {[%emt 0:03:47]} 27. Rf1 {[%emt 0:03:12]} Qxe3 {[%emt 0:00:08]} 28. fxe4 {[%emt 0:00:39]} bxa6 {[%emt 0:03:16]} 29. exd5 {[%emt 0:01:30]} cxd5 {[%emt 0:01:43]} 30. Qg6+ {[%emt 0:01:40]} Rg7 {[%emt 0:01:30]} 31. Qe8+ {[%emt 0:00:05]} 1-0

[Event "51st Rilton Cup 2023-24"]
[Site "Stockholm"]
[Date "2024.01.02"]
[Round "6.1"]
[White "Raja Rithvik R"]
[Black "Blomqvist, Erik"]
[Result "1/2-1/2"]
[ECO "C78"]
[WhiteElo "2500"]
[BlackElo "2521"]
[Annotator "TA"]
[PlyCount "61"]
[EventDate "2023.12.27"]
[EventType "swiss"]
[EventCountry "SWE"]
[SourceTitle "playchess.com"]
[Source "ChessBase"]
[SourceQuality "1"]
[TimeControl "40/5400+30:1800+30"]

{[%evp 17,61,41,29,0,0,-3,0,0,0,0,27,30,27,10,1,14,0,0,0,0,0,0,0,0,0,0,0,0,0,0,0,0,0,0,0,0,0,0,0,0,0,0,0,0,0,0]} 1. e4 {[%emt 0:00:04]} e5 {[%emt 0:07:12]} 2. Nf3 {[%emt 0:00:04]} Nc6 {[%emt 0:00:05]} 3. Bb5 {[%emt 0:00:05]} a6 {[%emt 0:00:16]} 4. Ba4 {[%emt 0:00:06]} Nf6 {[%emt 0:00:07]} 5. O-O {[%emt 0:00:10]} b5 {[%emt 0:00:12]} 6. Bb3 {[%emt 0:00:05]} Bc5 {[%emt 0:00:17]} 7. a4 {[%emt 0:01:00]} Rb8 {[%emt 0:00:22]} 8. c3 {[%emt 0:00:14]} d6 {[%emt 0:00:38]} 9. d4 {[%emt 0:00:12]} Bb6 {[%emt 0:00:16]} 10. h3 {[%emt 0:01:12] C78: Ruy Lopez: Archangelsk and Möller Defences.} O-O {[%emt 0:05:45]} 11. Be3 {[%emt 0:01:23]} h6 {[%emt 0:04:49]} 12. Nbd2 {[%emt 0:02:11]} Re8 {[%emt 0:01:24]} 13. Re1 {[%emt 0:01:23]} exd4 {[%emt 0:08:59]} 14. cxd4 {[%emt 0:01:17]} Nb4 {[%emt 0:00:18]} ({Don't play} 14... Nxe4 15. Nxe4 Rxe4 16. Bd5 Rxe3 17. Rxe3 $16 (17. fxe3 Qe8 $14)) 15. axb5 {[%emt 0:19:22]} (15. e5 {seems wilder.} Nfd5 16. Ne4 Bb7 17. Bd2) 15... axb5 {[%emt 0:00:09] The position is equal.} 16. d5 {[%emt 0:00:32] [#]} c5 $146 {[%emt 0:07:57]} (16... Nxe4 $2 17. Nxe4 Rxe4 18. Bxb6 Rxe1+ 19. Qxe1 $18) ({Predecessor:} 16... Nd3 17. Re2 Nxb2 18. Qc2 Na4 19. Nd4 Bd7 20. Bxa4 bxa4 21. Nc6 Bxc6 22. dxc6 Qe7 23. Rxa4 Bxe3 24. Rxe3 {1-0 Bilych,O (2420)-Tin,J (2562) Titled Tuesday intern op 04th Oct Early blitz 2022 (3)}) 17. dxc6 {[%emt 0:00:38]} Nxc6 {[%emt 0:00:50]} 18. Qe2 {[%emt 0:20:49]} Be6 {[%emt 0:14:42]} 19. Bxe6 {[%emt 0:06:16]} (19. Qxb5 $2 {perishes.} Bxe3 20. Qxc6 Bxd2 21. Nxd2 Bxb3 $19) 19... Rxe6 {[%emt 0:00:41]} 20. Qxb5 {[%emt 0:05:57]} Bxe3 {[%emt 0:03:48]} 21. Qxc6 {[%emt 0:00:20]} Bxd2 {[%emt 0:00:58]} 22. Nxd2 {[%emt 0:00:05]} d5 {[%emt 0:03:57]} 23. Qc2 {[%emt 0:02:17]} Nxe4 {[%emt 0:00:44]} 24. Nxe4 {[%emt 0:00:45]} dxe4 {[%emt 0:01:18]} 25. Rxe4 {[%emt 0:01:35]} Rxe4 {[%emt 0:02:34]} 26. Qxe4 {[%emt 0:00:05]} Rxb2 $11 {[%emt 0:00:07] KQR-KQR} 27. Ra8 {[%emt 0:00:51][%cal Ra8d8] [#]} Rb8 {[%emt 0:00:08]} 28. Rxb8 {[%emt 0:00:10]} Qxb8 {[%emt 0:00:05]} 29. g3 {[%emt 0:00:04]} g6 {[%emt 0:00:11]} 30. h4 {[%emt 0:00:06]} h5 {[%emt 0:00:04]} 31. Kg2 {[%emt 0:00:04] An interesting draw.   Weighted Error Value: White=0.03 (flawless) /Black=0.02 (flawless)} 1/2-1/2

[Event "51st Rilton Cup 2023-24"]
[Site "Stockholm"]
[Date "2024.01.02"]
[Round "6.2"]
[White "Trost, Edvin"]
[Black "Kulaots, Kaido"]
[Result "1-0"]
[ECO "E11"]
[WhiteElo "2434"]
[BlackElo "2524"]
[Annotator "TA"]
[PlyCount "99"]
[EventDate "2023.12.27"]
[EventType "swiss"]
[EventCountry "SWE"]
[SourceTitle "playchess.com"]
[Source "ChessBase"]
[SourceQuality "1"]
[TimeControl "40/5400+30:1800+30"]

{[%evp 13,99,0,0,-7,0,0,6,0,19,-4,-12,0,0,-21,-16,-18,11,0,0,-27,48,34,42,32,40,10,20,21,47,0,0,-9,-10,-21,0,-47,-41,-53,-42,-52,-62,-49,-30,-54,-19,-31,-33,-31,-25,-16,0,-41,0,0,0,-34,16,43,204,227,212,205,207,205,212,200,308,311,275,8,281,95,220,216,216,198,671,581,1336,5869,6016,4998,1385,745,700,693,888,872]} 1. d4 {[%emt 0:00:05]} Nf6 {[%emt 0:00:12]} 2. c4 {[%emt 0:00:45]} e6 {[%emt 0:00:17]} 3. Nf3 {[%emt 0:01:27]} d5 {[%emt 0:01:00]} 4. g3 {[%emt 0:00:12]} Bb4+ {[%emt 0:00:17]} 5. Bd2 {[%emt 0:00:06]} Be7 {[%emt 0:00:10]} 6. Bg2 {[%emt 0:00:37]} O-O {[%emt 0:00:18]} 7. O-O {[%emt 0:00:05]} Nbd7 {[%emt 0:01:13]} 8. Bc3 {[%emt 0:03:39] E11: Bogo-Indian.} Ne4 {[%emt 0:10:22]} 9. a4 {[%emt 0:01:12]} a5 {[%emt 0:01:11]} 10. Nbd2 {[%emt 0:00:13] The position is equal.} f5 {[%emt 0:09:24]} 11. Nxe4 {[%emt 0:06:47] [#]} dxe4 $146 {[%emt 0:06:30]} ({Predecessor:} 11... fxe4 12. Nd2 c6 13. e3 Bf6 14. Qb3 Qb6 15. Qxb6 Nxb6 16. b3 Re8 17. f3 exf3 18. Bxf3 e5 19. Bh5 Re7 20. dxe5 Bxe5 21. Bxe5 Rxe5 22. Bf7+ Kh8 23. Bxd5 {½-½ Palomo Teruel,X (2096)-Alvarez Albiol,V (2214) Andorra op 39th 2023 (5)}) 12. Nd2 {[%emt 0:04:22]} c5 {[%emt 0:20:55]} 13. Nb3 {[%emt 0:05:21]} Qc7 {[%emt 0:05:39]} 14. Qc2 {[%emt 0:14:03]} e5 {[%emt 0:02:47]} 15. d5 {[%emt 0:12:57]} Nf6 {[%emt 0:01:49]} 16. f3 {[%emt 0:03:43][%cal Rf3e4]} exf3 {[%emt 0:00:51]} ({Better is} 16... e3 $1 $11) 17. exf3 $14 {[%emt 0:00:14]} Bd6 {[%emt 0:00:25]} 18. Rae1 {[%emt 0:01:11]} Bd7 {[%emt 0:08:50]} 19. Nc1 {[%emt 0:00:10]} Rae8 {[%emt 0:01:13]} 20. b3 {[%emt 0:03:47]} b6 {[%emt 0:00:13]} 21. Qb2 {[%emt 0:01:46]} (21. Bh3 $14) 21... f4 $11 {[%emt 0:11:09]} 22. gxf4 {[%emt 0:12:26]} exf4 {[%emt 0:00:11]} 23. Nd3 {[%emt 0:00:04]} Bf5 {[%emt 0:02:37]} (23... Re3 $5 {[%cal Re3d3]} 24. Ne5 Re8 25. Nxd7 Qxd7 $11) 24. Ne5 {[%emt 0:00:19]} (24. Nf2 $11 {is superior.}) 24... Nd7 $15 {[%emt 0:06:51]} 25. Nc6 {[%emt 0:01:26]} Nb8 {[%emt 0:00:21]} 26. Nxb8 {[%emt 0:04:59]} Rxb8 {[%emt 0:00:13]} 27. Rf2 {[%emt 0:00:20]} Rbe8 {[%emt 0:00:20]} 28. Rfe2 $1 {[%emt 0:00:04]} Qf7 {[%emt 0:00:36]} 29. Bf1 {[%emt 0:00:58]} Rxe2 {[%emt 0:02:49]} 30. Qxe2 {[%emt 0:00:51]} Qh5 {[%emt 0:02:56]} 31. Kh1 {[%emt 0:01:00]} Qg6 {[%emt 0:01:41]} 32. Ba1 {[%emt 0:01:47]} h6 {[%emt 0:01:43]} 33. Qb2 {[%emt 0:00:54][%cal Of1d3]} Rf7 {[%emt 0:00:34]} 34. Qd2 {[%emt 0:06:22][%cal Of1d3]} Rf8 {[%emt 0:01:12]} ({Black should try} 34... Rd7 $15) 35. Bd3 $11 {[%emt 0:00:45]} Qf7 {[%emt 0:00:36]} (35... Bxd3 $14 36. Rg1 (36. Re6 Qf5 $11) 36... Re8 37. Rxg6 Bxg6) 36. Rg1 $18 {[%emt 0:00:48]} g5 {[%emt 0:00:30]} 37. Qc3 {[%emt 0:00:53][%csl Ga1][%cal Rc3h8]} Qh7 {[%emt 0:00:02] Against Qh8+} 38. Bxf5 Rxf5 {[%emt 0:00:01]} 39. Re1 {[%emt 0:00:26] Prevents Be5. aiming for Re6.} Rf7 {[%emt 0:01:12]} (39... Bf8 $142 40. Qc2 Rf7 41. Qxh7+ Kxh7) 40. Re6 {[%emt 0:02:14]} Bf8 {[%emt 0:00:45] [#]} 41. Qe5 {[%emt 0:17:44]} (41. Rxb6 $2 Qb1+ 42. Kg2 Bg7 $19) ({Only move:} 41. d6 $1 $18 {[%cal Oe6g6] Hoping for Rg6+!} Bg7 42. Re8+ Bf8 43. Re6) 41... Rg7 {[%emt 0:02:12][%mdl 8192] Inhibits Rg6.} (41... Qb1+ $11 {and Black is okay.} 42. Qe1 (42. Kg2 Bg7 $11 {[%mdl 64] Skewer}) 42... Qxb3) 42. Rxb6 $2 {[%emt 0:05:44]} (42. Qe4 $18 Qxe4 43. fxe4) 42... Qb1+ {[%emt 0:00:20]} (42... Re7 $16 {keeps fighting.} 43. Re6 Rb7) 43. Kg2 {[%emt 0:00:05] And now Rb8 would win.} Qc2+ {[%emt 0:05:06]} 44. Kg1 {[%emt 0:05:22]} (44. Kh3 g4+ 45. fxg4 Qd3+ 46. Kh4 Be7+ 47. Rf6 Qf3 48. Qe6+ Kh8 49. Qc8+ Rg8 $19) 44... g4 $2 {[%emt 0:17:22]} (44... Qd1+ 45. Kf2 (45. Kg2 Qd2+ 46. Kf1 Qd1+ 47. Kf2 Qd2+ 48. Qe2 Qxe2+ 49. Kxe2 Re7+ 50. Kf2 Re3 $18) 45... Qd2+ 46. Kf1 (46. Qe2 Qxe2+ 47. Kxe2 Re7+ 48. Kf2 Re3 $18) 46... Qc1+ 47. Kf2 Qd2+ 48. Qe2 Qxe2+ 49. Kxe2 Re7+ 50. Kf2 Kf7) 45. Qe6+ {[%emt 0:00:57] White is clearly winning.} (45. Rxh6 gxf3+) 45... Kh7 {[%emt 0:00:07]} 46. Qxh6+ {[%emt 0:01:28][%mdl 64] [#] Pin, Double Attack} ({Stronger than} 46. fxg4 Qd1+ 47. Kf2 (47. Kg2 $2 Rxg4+ $19) 47... Qxa1 $11) 46... Kg8 {[%emt 0:00:05]} 47. Qe6+ {[%emt 0:00:03]} (47. Qxf4 {gets mated.} gxf3+) 47... Kh7 {[%emt 0:00:04]} 48. Qe4+ {[%emt 0:01:37]} ({Not} 48. fxg4 f3 49. Qh6+ Kg8 50. Qe6+ Kh7 51. Qh6+ {[%mdl 64] Pin, Double Attack} Kg8 52. Qe6+ Kh7 $11) 48... Qxe4 {[%emt 0:00:33]} 49. fxe4 {[%emt 0:00:03]} Rf7 {[%emt 0:01:04]} 50. Rf6 {[%emt 0:00:24] A cool game by Trost.   Weighted Error Value: White=0.23 (precise) /Black=0.43} 1-0

[Event "51st Rilton Cup 2023-24"]
[Site "Stockholm"]
[Date "2024.01.02"]
[Round "6.3"]
[White "Socko, Bartosz"]
[Black "Malek, Jan"]
[Result "1/2-1/2"]
[ECO "E05"]
[WhiteElo "2550"]
[BlackElo "2434"]
[Annotator "TA"]
[PlyCount "88"]
[EventDate "2023.12.27"]
[EventType "swiss"]
[EventCountry "SWE"]
[SourceTitle "playchess.com"]
[Source "ChessBase"]
[SourceQuality "1"]
[TimeControl "40/5400+30:1800+30"]

{[%evp 13,88,0,0,5,27,8,43,27,33,-6,0,0,0,0,-4,-12,-29,-36,-6,-6,-8,-15,0,0,0,0,0,0,0,0,0,0,0,0,-4,-4,-4,-6,-6,-6,-6,-5,0,0,0,-1,0,0,0,0,0,0,0,0,0,0,0,0,0,0,0,0,0,0,0,0,0,0,0,0,0,0,0,0,0,0,0]} 1. d4 {[%emt 0:00:04]} Nf6 {[%emt 0:00:07]} 2. c4 {[%emt 0:00:04]} e6 {[%emt 0:00:06]} 3. g3 {[%emt 0:00:06]} d5 {[%emt 0:00:06]} 4. Bg2 {[%emt 0:00:05]} Be7 {[%emt 0:00:06]} 5. Nf3 {[%emt 0:00:27]} O-O {[%emt 0:00:08]} 6. O-O {[%emt 0:01:31]} dxc4 {[%emt 0:00:07]} 7. Qc2 {[%emt 0:00:08]} b5 {[%emt 0:00:07]} 8. a4 {[%emt 0:00:42] E05: Open Catalan: 5 Nf3 Be7.} b4 {[%emt 0:00:10]} 9. Nfd2 {[%emt 0:01:00]} Nd5 {[%emt 0:00:24]} 10. Nxc4 {[%emt 0:02:00] White is slightly better.} c5 {[%emt 0:00:07]} 11. e4 {[%emt 0:04:07]} Nb6 {[%emt 0:00:13]} 12. Nxb6 {[%emt 0:03:15]} axb6 {[%emt 0:01:07]} 13. dxc5 {[%emt 0:02:30]} Bxc5 {[%emt 0:01:26]} 14. Rd1 {[%emt 0:03:41] [#]} Qe7 $146 {[%emt 0:02:26]} ({Predecessor:} 14... Qc7 15. Be3 Na6 16. Bxc5 Nxc5 17. Nd2 Ba6 18. Nb3 Rac8 19. Rac1 Qe7 20. Nxc5 Rxc5 {½-½ Sjugirov,S (2663)-Hakobyan,A (2598) PNWCC Online Blitz JP 21 2021 (3)}) 15. Nd2 {[%emt 0:01:19]} Nc6 {[%emt 0:09:24] And now ...Nd4 would win.} 16. Nb3 {[%emt 0:00:58] Repels Nd4. The position is equal.} e5 {[%emt 0:00:06]} 17. Nxc5 {[%emt 0:18:41]} bxc5 {[%emt 0:00:16]} 18. Be3 {[%emt 0:00:05]} Nd4 {[%emt 0:00:04]} 19. Bxd4 {[%emt 0:00:05]} cxd4 {[%emt 0:00:05]} 20. Rdc1 {[%emt 0:00:32]} Be6 {[%emt 0:16:17]} 21. Qc5 {[%emt 0:02:46] Inhibits Rfc8.} Qxc5 {[%emt 0:01:47]} 22. Rxc5 {[%emt 0:00:06][%cal Og2f1]} d3 {[%emt 0:00:54]} 23. Bf3 {[%emt 0:21:49][%cal Og1g2]} d2 {[%emt 0:08:56]} 24. a5 $1 {[%emt 0:07:08]} Rfc8 {[%emt 0:15:50]} 25. Rxc8+ {[%emt 0:02:42]} Rxc8 $11 {[%emt 0:00:01][%mdl 4096] Endgame KRB-KRB} 26. Rd1 {[%emt 0:00:30]} Rc2 {[%emt 0:10:18] [#] Strongly threatening ...Bc4.} 27. a6 {[%emt 0:00:25] Threatens to win with a7.} Bd7 {[%emt 0:03:29]} 28. a7 {[%emt 0:02:20]} Bc6 {[%emt 0:01:49]} 29. Kf1 $132 {[%emt 0:05:08][%mdl 2048] White has counterplay} Rxb2 {[%emt 0:00:07]} 30. Ra1 {[%emt 0:04:24] Repels Ra2} Ba8 {[%emt 0:02:54]} 31. Bd1 {[%emt 0:00:05] Inhibits Rc2.} f6 {[%emt 0:05:10]} 32. Ke2 {[%emt 0:03:09]} Kf7 {[%emt 0:00:21]} 33. f3 {[%emt 0:01:15][%cal Oa1a2] [#] aiming for Ra2!} Ke7 {[%emt 0:01:03]} 34. Kd3 {[%emt 0:02:15]} b3 {[%emt 0:02:04]} 35. Ra4 {[%emt 0:00:57]} (35. Kc3 $5 Ra2 $8 36. Rxa2 {[%mdl 64] Remove Defender} bxa2 37. Kb2 $11) 35... Kd6 {[%emt 0:02:21]} 36. Kc3 {[%emt 0:03:04][%csl LRb2,LRb3] Chess con chili.} Rb1 {[%emt 0:06:56]} 37. Kxd2 {[%emt 0:00:14]} Kc5 {[%emt 0:00:06] ...b2 is the strong threat.} 38. Ra5+ {[%emt 0:03:06]} Kb6 {[%emt 0:00:57]} (38... Kb4 $5 39. Ra6 $8 Kc5 $11) 39. Ra3 {[%emt 0:00:48]} b2 {[%emt 0:00:38][%cal Ob1d1]} 40. Ke2 {[%emt 0:03:16]} (40. Bc2 Rh1 41. Rb3+ Kxa7 $17) 40... g5 {[%emt 0:04:07]} 41. g4 {[%emt 0:32:11]} ({But not} 41. Bc2 Rh1 42. Rb3+ Kxa7 $17) 41... Kb7 {[%emt 0:31:06]} 42. Ra4 {[%emt 0:01:56]} ({Reject} 42. Bc2 Rh1 43. Rb3+ Kxa7 $17) 42... Kb6 {[%emt 0:04:04][%cal Ob1d1]} 43. Ra3 {[%emt 0:00:21]} ({Of course not} 43. Bc2 Rh1 44. Rb4+ Kxa7 $17) 43... Kb5 {[%emt 0:00:54][%cal Ob1d1] White must now prevent ...Rxd1!} (43... Ra1 $5 44. Rb3+ $8 Kc5 45. Rxb2 Bc6 $11) 44. Ra2 {[%emt 0:00:00]} Kb6 {[%emt 0:00:00] Weighted Error Value: White=0.01 (flawless) /Black=0.02 (flawless)} 1/2-1/2